bitfinex/quotes_ETHUSD_20250827
["timestamp","ask_amount","ask_price","bid_price","bid_amount"]
[1756279363929,3.739,4576.1,4576.0,2.18531468]
[1756279364225,3.739,4576.1,4576.0,0.2937]
[1756279364626,3.739,4576.1,4576.0,2.91551468]
[1756279364782,3.739,4576.1,4576.0,0.7302]
[1756279364987,3.739,4576.1,4576.0,2.91551468]
[1756279365189,3.739,4576.1,4576.0,0.2937]
[1756279365403,3.748,4576.1,4576.0,0.7302]
[1756279365711,3.749,4576.1,4576.0,2.91550394]
[1756279365914,1.68,4576.8,4576.4,2.18511393]
[1756279366105,1.68,4576.8,4576.7,0.2937]
[1756279366300,8.431,4576.8,4576.7,0.7302]
[1756279366499,5.431,4576.8,4576.7,0.7302]
[1756279366724,5.471,4576.8,4576.7,2.91518044]
[1756279368911,6.2104,4576.8,4576.0,2.18530262]
[1756279369113,3.754,4576.7,4575.9,0.4365]
[1756279369289,2.0276,4576.8,4576.1,2.18526693]
[1756279369290,1.72,4576.8,4576.1,2.18526693]
[1756279369487,3.754,4576.6,4575.9,0.4365]
[1756279369790,0.1096,4576.1,4576.0,2.18531468]
[1756279370117,1.72,4576.8,4576.0,1.21092049]
[1756279370286,0.656952,4576.6,4576.5,2.18503956]
[1756279370486,0.656952,4576.6,4576.5,2.47873956]
[1756279370682,0.766552,4576.6,4576.5,2.47873956]
[1756279371096,0.766552,4576.6,4576.5,0.2937]
[1756279371714,0.766552,4576.6,4576.5,2.47877593]
[1756279372302,4.828152,4576.6,4575.7,0.4365]
[1756279372515,0.1096,4576.2,4575.8,0.4365]
[1756279372698,1.72,4576.8,4576.2,2.18521917]
[1756279372923,0.1096,4576.3,4576.2,2.18521917]
[1756279373113,0.1096,4576.3,4576.2,3.17759109]
[1756279373315,1.72,4576.8,4576.7,2.18498044]
[1756279373494,1.8296,4576.8,4576.7,2.47868044]
[1756279373819,6.242559,4576.8,4576.7,2.47868044]
[1756279374699,6.550159,4576.8,4576.5,0.001]
[1756279375020,2.794159,4576.8,4576.5,0.001]
[1756279375225,3.754,4576.7,4576.5,0.001]
[1756279375597,0.7394,4576.6,4576.5,0.001]
[1756279375989,0.3076,4576.6,4576.5,0.001]
[1756279376190,4.0636,4576.6,4576.5,0.001]
[1756279376637,4.4954,4576.6,4576.5,0.001]
[1756279376839,4.0636,4576.6,4576.5,0.001]
[1756279377143,0.3076,4576.6,4576.5,0.001]
[1756279377336,3.754,4576.6,4576.5,0.001]
[1756279378045,2.486559,4576.8,4576.5,0.306]
[1756279378207,3.754,4576.6,4576.5,0.306]
[1756279378628,3.754,4576.6,4576.5,2.49107593]
[1756279378940,3.753,4576.6,4576.5,2.49107593]
[1756279379996,3.753,4576.6,4576.5,0.306]
[1756279380196,3.753,4576.6,4576.5,2.18607593]
[1756279380610,1.8296,4576.8,4576.5,0.306]
[1756279380812,1.72,4576.8,4576.7,2.18498044]
[1756279381009,5.5796,4576.8,4576.7,2.48998044]
[1756279381244,5.5796,4576.8,4576.7,2.92128044]
[1756279381447,5.471,4576.8,4576.7,3.38888482]
[1756279381608,0.04,4576.8,4576.7,3.49848482]
[1756279381820,3.791,4576.8,4576.7,3.49848482]
[1756279382435,0.04,4576.8,4576.7,3.49848482]
[1756279382628,0.04,4576.8,4576.7,3.52033462]
[1756279382808,0.04,4576.8,4576.7,3.49848482]
[1756279383008,1.68,4577.5,4577.2,2.18471909]
[1756279383257,1.68,4577.5,4577.4,2.4896463]
[1756279383427,5.43,4577.5,4577.4,2.9209463]
[1756279384033,5.43,4577.5,4577.4,3.44247284]
[1756279384830,0.02,4577.8,4577.7,2.18450313]
[1756279385012,3.769,4577.8,4577.7,2.18450313]
[1756279385206,3.769,4577.8,4577.7,2.92080313]
[1756279385409,3.769,4577.8,4577.7,3.49663828]
[1756279385820,0.02,4577.8,4577.7,3.49663828]
[1756279386047,1e-08,4577.8,4577.7,3.49663828]
[1756279386950,1e-08,4577.8,4577.7,2.48950313]
[1756279387113,1e-08,4577.8,4577.7,2.92080313]
[1756279389765,1e-08,4577.8,4577.7,2.94264816]
[1756279390370,1e-08,4577.8,4577.7,2.92080313]
[1756279391361,1e-08,4577.8,4577.7,6.69040313]
[1756279391537,1e-08,4577.8,4577.7,8.00465373]
[1756279392053,1e-08,4577.8,4577.7,11.74865373]
[1756279393059,1e-08,4577.8,4577.7,8.00465373]
[1756279393259,1e-08,4577.8,4577.7,11.75065373]
[1756279396147,0.4662,4579.5,4577.7,11.75065373]
[1756279396148,1e-08,4579.8,4579.7,2.18354914]
[1756279396348,1e-08,4579.8,4579.7,2.29234914]
[1756279397448,1e-08,4579.8,4579.7,6.71934651]
[1756279399879,1e-08,4579.8,4579.7,7.15064651]
[1756279400375,1e-08,4579.8,4579.7,10.89064651]
[1756279401441,1e-08,4579.8,4579.7,10.45934651]
[1756279401657,1e-08,4579.8,4579.7,10.89064651]
[1756279402882,1e-08,4580.8,4580.7,2.18307245]
[1756279403344,0.30740001,4580.8,4580.7,2.18307245]
[1756279403546,0.41620001,4580.8,4580.7,2.18307245]
[1756279403850,0.88240001,4580.8,4580.7,2.18307245]
[1756279404469,1.58240001,4580.8,4580.7,2.18307245]
[1756279404670,1.11620001,4580.8,4580.7,2.18307245]
[1756279404869,0.88240001,4580.8,4580.7,2.18307245]
[1756279405165,0.77360001,4580.8,4580.7,2.18307245]
[1756279406171,0.88240001,4580.8,4580.7,2.18307245]
[1756279407887,2.56140001,4580.8,4579.6,0.1088]
[1756279408053,0.1088,4580.6,4579.6,0.1088]
[1756279408254,0.3067,4579.7,4579.6,2.29239682]
[1756279408480,0.7462,4579.7,4579.6,2.18359682]
[1756279409647,1.4462,4579.7,4579.6,2.18359682]
[1756279410276,1.555,4579.7,4579.6,2.18359682]
[1756279412173,1.555,4579.7,4579.6,2.18459682]
[1756279412771,1.1155,4579.7,4579.6,2.18459682]
[1756279413005,0.8088,4579.7,4579.6,2.49169682]
[1756279413159,0.7,4579.7,4579.6,2.49169682]
[1756279414076,1.4462,4579.7,4579.6,2.18459682]
[1756279415389,1.6017,4579.7,4579.6,0.001]
[1756279415697,1.7105,4579.7,4579.6,0.001]
[1756279415994,4.55404914,4579.7,4579.6,0.001]
[1756279416994,7.55404914,4579.7,4579.6,0.001]
[1756279417995,17.55404914,4579.7,4579.6,0.001]
[1756279418866,5.84378756,4579.2,4579.1,0.001]
[1756279419069,14.95258756,4579.2,4579.1,0.001]
[1756279419281,15.69878756,4579.2,4579.1,0.001]
[1756279419993,25.69878756,4579.2,4579.1,0.001]
[1756279420386,26.04057994,4579.2,4579.1,0.001]
[1756279422896,5.18383525,4579.1,4578.8,0.02]
[1756279423067,0.66,4579.0,4578.8,0.02]
[1756279423272,7.82963063,4578.9,4578.8,0.02]
[1756279423584,7.93843063,4578.9,4578.8,0.02]
[1756279423887,8.37793063,4578.9,4578.8,0.02]
[1756279424088,12.12693063,4578.9,4578.8,0.02]
[1756279424668,12.01813063,4578.9,4578.8,0.02]
[1756279424873,12.12693063,4578.9,4578.8,0.02]
[1756279425519,11.68743063,4578.9,4578.8,0.02]
[1756279426012,5.0945,4578.9,4578.8,0.02]
[1756279426176,5.5368,4578.9,4578.8,0.3271]
[1756279426369,5.8435,4578.9,4578.8,0.02]
[1756279426832,5.5368,4578.9,4578.8,0.02]
[1756279427009,5.8435,4578.9,4578.8,0.02]
[1756279427505,5.5368,4578.9,4578.8,0.02]
[1756279427707,0.66,4578.8,4578.6,0.001]
[1756279428002,22.42343383,4578.9,4578.6,0.001]
[1756279428003,5.84402603,4578.7,4578.6,0.001]
[1756279428215,6.59022603,4578.7,4578.6,0.001]
[1756279429920,16.59022603,4578.7,4578.6,0.001]
[1756279430288,20.33922603,4578.7,4578.6,0.001]
[1756279434031,20.33922603,4578.7,4577.8,0.021]
[1756279434032,2.96,4578.3,4577.8,0.021]
[1756279434194,5.18407373,4578.6,4577.8,0.021]
[1756279434195,14.34873383,4577.9,4577.8,0.021]
[1756279434396,25.26984152,4577.9,4577.8,0.021]
[1756279434596,25.70934152,4577.9,4577.8,0.021]
[1756279434797,35.70934152,4577.9,4577.8,0.021]
[1756279435358,2.84498044,4576.7,4576.1,0.4692]
[1756279435501,8.27498044,4576.7,4576.1,0.4692]
[1756279436730,8.27498044,4576.7,4576.6,0.3081]
[1756279437345,8.56808044,4576.7,4576.6,0.001]
[1756279437645,8.27498044,4576.7,4576.6,0.001]
[1756279437945,8.38458044,4576.7,4576.6,0.001]
[1756279438334,8.38458044,4576.7,4576.6,0.2877]
[1756279438538,8.38458044,4576.7,4576.6,0.001]
[1756279439157,8.38458044,4576.7,4576.6,0.2877]
[1756279439548,8.85378044,4576.7,4576.6,0.2877]
[1756279441723,9.19569505,4576.7,4576.6,0.2877]
[1756279442412,9.18869505,4576.7,4576.6,0.2877]
[1756279444356,3.26071461,4576.7,4576.6,0.2877]
[1756279444540,6.1906,4576.7,4576.6,0.7166]
[1756279444947,5.5306,4576.7,4576.6,0.7166]
[1756279445575,8.66868044,4576.7,4576.6,0.001]
[1756279445940,8.37558044,4576.7,4576.6,0.001]
[1756279446143,8.66868044,4576.7,4576.6,0.001]
[1756279447362,11.66868044,4576.7,4576.6,0.001]
[1756279447656,2.18536244,4575.9,4575.8,0.02]
[1756279447856,6.69596244,4575.9,4575.8,0.02]
[1756279448063,6.98906244,4575.9,4575.8,0.02]
[1756279449182,10.42226244,4575.9,4575.8,0.02]
[1756279449559,10.76427,4575.9,4575.8,0.02]
[1756279450881,20.76427,4575.9,4575.8,0.02]
[1756279451252,27.84427,4575.9,4575.8,0.02]
[1756279451448,24.93260756,4575.9,4575.8,0.3067]
[1756279451653,14.19260756,4575.9,4575.8,0.7356]
[1756279451899,3.8506,4575.9,4575.8,0.7356]
[1756279453385,3.8506,4575.9,4575.8,2.9210102]
[1756279453707,3.8506,4575.9,4575.8,4.9210102]
[1756279454098,3.8506,4575.9,4575.8,5.48981423]
[1756279454994,3.742,4576.2,4575.9,2.185358]
[1756279455201,3.8516,4576.5,4576.4,2.18512367]
[1756279455400,3.742,4576.5,4576.4,2.90072367]
[1756279455620,3.8516,4576.8,4576.7,2.18498044]
[1756279455788,3.8516,4576.8,4576.7,2.90058044]
[1756279456314,3.8516,4576.8,4576.7,0.7156]
[1756279456678,3.8516,4576.8,4576.7,2.90058044]
[1756279457205,3.8516,4576.8,4576.7,3.4091445]
[1756279457521,3.742,4576.8,4576.7,3.4091445]
[1756279457817,0.1096,4577.0,4576.9,2.18488496]
[1756279458300,0.1096,4577.0,4576.9,2.90048496]
[1756279458916,0.1096,4577.0,4576.9,0.2867]
[1756279463626,0.4027,4577.0,4576.6,2.18502214]
[1756279463815,3.741,4577.1,4576.9,0.2867]
[1756279464122,0.1096,4576.7,4576.6,2.18502214]
[1756279464322,3.8446,4576.7,4576.6,2.47172818]
[1756279465008,3.8446,4576.7,4576.6,2.90062818]
[1756279465419,3.8446,4576.7,4576.6,2.47172818]
[1756279465590,3.8446,4576.7,4576.4,2.1851153]
[1756279465786,3.8446,4576.7,4576.6,0.2867]
[1756279466193,3.8446,4576.7,4576.6,2.47172818]
[1756279466393,3.735,4576.7,4576.6,2.90062818]
[1756279467210,5.253,4578.1,4576.6,2.90062818]
[1756279467211,0.002,4578.9,4576.7,1.23690403]
[1756279467410,0.002,4578.9,4578.4,0.4006]
[1756279467731,3.758,4578.7,4578.4,0.291]
[1756279467915,0.1096,4578.6,4578.4,2.18415176]
[1756279468111,0.1096,4578.6,4578.5,2.47512143]
[1756279468321,3.758,4578.7,4578.6,2.18407373]
[1756279468733,3.758,4578.7,4578.6,2.47507373]
[1756279469909,0.1288,4578.8,4578.7,2.18402603]
[1756279470215,3.8868,4578.8,4578.7,2.18402603]
[1756279470627,3.8868,4578.8,4578.7,2.47502603]
[1756279472043,3.8838,4578.8,4578.7,2.47502603]
[1756279472340,3.8838,4578.8,4578.7,2.18402603]
[1756279473207,3.8838,4578.8,4578.7,2.47502603]
[1756279473538,3.773,4578.8,4578.7,2.47502603]
[1756279474242,3.773,4578.8,4578.7,2.18402603]
[1756279474643,4.0655,4578.8,4578.7,2.18402603]
[1756279474846,3.773,4578.8,4578.7,2.18402603]
[1756279475632,3.773,4578.8,4578.7,2.47502603]
[1756279477456,0.02,4578.8,4578.7,3.42587627]
[1756279477622,3.77,4578.8,4578.7,3.42587627]
[1756279478151,0.02,4578.8,4578.7,3.40403601]
[1756279478648,3.373,4578.8,4578.7,3.40403601]
[1756279479234,3.373,4578.8,4578.7,2.47502603]
[1756279480451,3.6655,4578.8,4578.7,2.18402603]
[1756279481060,4.1043,4578.8,4578.4,0.1096]
[1756279481253,4.1043,4578.8,4578.7,2.18402603]
[1756279481558,3.373,4578.8,4578.7,2.47502603]
[1756279481755,3.373,4578.8,4578.7,2.18402603]
[1756279482459,3.6655,4578.8,4578.7,2.18402603]
[1756279482649,4.2131,4578.8,4578.7,2.18402603]
[1756279484348,3.7743,4578.8,4578.7,2.18402603]
[1756279484665,3.4818,4578.8,4578.7,2.47502603]
[1756279485668,3.373,4578.8,4578.7,2.47502603]
[1756279486988,3.76,4578.8,4578.7,2.47502603]
[1756279487268,0.02,4578.8,4578.7,2.47502603]
[1756279487565,3.76,4578.8,4578.7,2.47502603]
[1756279488685,0.02,4578.8,4578.7,2.47502603]
[1756279488874,3.758,4578.8,4578.7,2.47502603]
[1756279489681,4.0505,4578.8,4578.7,2.18402603]
[1756279489883,0.02,4578.8,4578.7,2.18402603]
[1756279490085,3.758,4578.8,4578.7,2.47502603]
[1756279491075,3.758,4578.8,4578.7,2.18402603]
[1756279494794,3.758,4578.8,4578.7,2.47502603]
[1756279494973,3.758,4578.8,4578.7,2.95189984]
[1756279495163,3.758,4578.8,4578.7,2.47502603]
[1756279496001,3.753,4578.8,4578.7,2.47502603]
[1756279496294,0.02,4578.8,4578.7,2.47502603]
[1756279496491,3.752,4578.8,4578.7,2.93812603]
[1756279496705,0.002,4578.9,4578.8,2.18397833]
[1756279496856,0.002,4578.9,4578.8,6.690844]
[1756279497062,0.002,4578.9,4578.8,7.090644]
[1756279497260,1e-08,4578.9,4578.8,7.090644]
[1756279500019,1e-08,4578.9,4578.8,6.627544]
[1756279500792,0.29420001,4578.9,4578.8,3.29633403]
[1756279501018,0.72980001,4578.9,4578.8,2.25256836]
[1756279502183,0.72980001,4578.9,4577.3,2.18469389]
[1756279502389,0.4356,4578.8,4578.7,2.18399496]
[1756279502621,0.7298,4578.8,4578.6,2.18406771]
[1756279502937,0.7298,4578.8,4578.2,2.1842325]
[1756279502938,0.1096,4578.5,4578.2,2.1842325]
[1756279503222,5.8556,4578.4,4578.3,2.18421684]
[1756279503423,6.1498,4578.4,4577.8,0.02]
[1756279504025,0.1096,4577.9,4577.8,0.02]
[1756279504232,3.8496,4577.9,4577.8,0.02]
[1756279504526,4.5794,4577.9,4577.8,2.20445541]
[1756279504927,4.5794,4577.9,4577.8,0.02]
[1756279505107,4.5794,4577.9,4577.8,2.20445541]
[1756279505504,1.679,4578.4,4577.8,2.20445541]
[1756279505830,1.679,4578.4,4578.3,2.18421684]
[1756279506036,6.1478,4578.4,4578.3,2.18421684]
[1756279506202,6.2574,4578.4,4578.3,2.18421684]
[1756279512259,6.2574,4578.4,4578.1,2.18427267]
[1756279512555,6.2574,4578.4,4578.2,2.18426455]
[1756279512556,0.4356,4578.3,4578.2,2.18426455]
[1756279512914,0.7298,4578.3,4578.2,2.18426455]
[1756279514748,3.731,4578.3,4578.2,2.18426455]
[1756279515250,4.4608,4578.3,4577.8,0.02]
[1756279515451,4.0252,4578.3,4577.8,0.02]
[1756279515762,0.1096,4578.1,4578.0,2.18435889]
[1756279516074,3.8396,4578.1,4577.8,0.02]
[1756279516276,0.2942,4577.9,4577.8,0.02]
[1756279516578,4.0232,4577.9,4577.8,0.02]
[1756279516776,4.0232,4577.9,4577.8,2.20445541]
[1756279516950,4.4588,4577.9,4577.8,2.20445541]
[1756279517346,4.0232,4577.9,4577.8,2.20445541]
[1756279518180,4.4588,4577.9,4577.8,2.20445541]
[1756279518388,0.1096,4578.1,4578.0,2.18435998]
[1756279518582,3.8396,4578.1,4578.0,2.18435998]
[1756279519762,3.8396,4578.1,4578.0,2.47195998]
[1756279519960,3.8396,4578.1,4578.0,2.93959908]
[1756279520162,3.729,4578.1,4578.0,2.93959908]
[1756279520361,3.729,4578.1,4578.0,3.04919908]
[1756279521273,3.729,4578.1,4578.0,3.51229908]
[1756279521469,3.729,4578.1,4578.0,3.04919908]
[1756279521674,3.729,4578.1,4578.0,2.76159908]
[1756279522959,3.729,4578.1,4578.0,3.04919908]
[1756279524402,4.0232,4578.1,4578.0,2.76159908]
[1756279525096,3.729,4578.1,4578.0,2.76159908]
[1756279525300,1.679,4578.4,4578.3,2.18421684]
[1756279525600,1.679,4578.4,4577.8,2.205431]
[1756279525601,6.1338,4578.4,4577.8,0.021]
[1756279526280,6.2434,4578.4,4577.8,2.20543683]
[1756279526615,0.1096,4578.0,4577.8,0.021]
[1756279526820,3.725,4577.9,4577.8,0.021]
[1756279527128,4.4548,4577.9,4577.8,0.021]
[1756279527465,4.4548,4577.9,4577.8,2.20545541]
[1756279528209,4.4548,4577.9,4577.8,0.021]
[1756279528441,4.4548,4577.9,4577.8,2.20545541]
[1756279528583,4.4548,4577.9,4577.8,0.021]
[1756279528787,4.4548,4577.9,4577.8,2.20545541]
[1756279531705,3.725,4577.9,4577.8,2.20545541]
[1756279532285,3.725,4577.9,4577.8,2.51805541]
[1756279532623,3.727,4578.8,4578.7,2.18402603]
[1756279532819,3.727,4578.8,4578.7,2.49662603]
[1756279533201,3.727,4578.8,4578.7,2.95772603]
[1756279534026,3.727,4578.8,4578.7,2.49662603]
[1756279534404,3.727,4578.8,4578.7,2.95772603]
[1756279534600,3.727,4578.8,4578.7,3.47190847]
[1756279535724,0.002,4578.8,4578.7,3.47190847]
[1756279537391,0.002,4578.8,4578.7,3.01080847]
[1756279539225,0.002,4578.8,4578.7,3.47190847]
[1756279539623,1e-08,4578.8,4578.7,3.47190847]
[1756279540631,0.002,4579.9,4579.7,2.18354914]
[1756279540830,0.002,4579.9,4579.7,2.40190405]
[1756279541033,0.002,4579.9,4579.7,2.71450405]
[1756279541332,0.022,4579.8,4579.7,2.71450405]
[1756279541511,6.1587,4579.8,4578.7,0.51418244]
[1756279541711,6.1587,4579.8,4578.0,0.62605859]
[1756279542022,0.4493,4579.7,4579.1,2.18381151]
[1756279542341,0.2874,4579.2,4579.1,2.18381151]
[1756279542641,4.4587,4579.2,4579.1,2.18381151]
[1756279543071,4.4587,4579.2,4577.9,2.18440769]
[1756279543379,0.4493,4579.1,4578.5,0.1096]
[1756279543653,0.2874,4578.6,4578.5,2.18412143]
[1756279543839,6.1367,4578.6,4578.5,2.18412143]
[1756279545450,2.4157,4578.6,4578.5,2.18412143]
[1756279545657,6.1377,4578.6,4578.5,2.18412143]
[1756279546556,6.1377,4578.6,4578.2,2.18426455]
[1756279546846,0.4493,4578.5,4578.0,2.18435174]
[1756279547048,0.2874,4578.1,4578.0,2.43790117]
[1756279547348,4.4567,4578.1,4578.0,2.43790117]
[1756279548550,4.0074,4578.1,4578.0,2.43790117]
[1756279550627,4.4567,4578.5,4578.4,2.18414128]
[1756279551040,0.7367,4578.5,4578.4,2.18414128]
[1756279551237,4.4547,4578.5,4578.4,2.18414128]
[1756279551955,4.4547,4578.5,4578.2,2.18422467]
[1756279552121,4.0054,4578.5,4578.2,2.18422467]
[1756279552326,0.4493,4578.4,4577.9,0.1096]
[1756279552527,0.2874,4578.0,4577.8,0.021]
[1756279552762,3.717,4577.9,4577.8,0.021]
[1756279552962,4.1663,4577.9,4577.8,0.021]
[1756279553150,0.7367,4577.9,4577.8,2.20545541]
[1756279553470,0.7367,4577.9,4577.8,0.021]
[1756279553640,4.4537,4577.9,4577.8,0.021]
[1756279554237,4.4537,4577.9,4577.8,2.20545541]
[1756279554440,3.717,4577.9,4577.8,2.51804329]
[1756279554874,3.717,4577.9,4577.8,0.021]
[1756279555470,0.4493,4578.3,4577.9,2.18436011]
[1756279555652,3.716,4578.2,4578.1,2.18431226]
[1756279555850,4.0034,4578.2,4578.1,2.18431226]
[1756279556580,3.716,4578.2,4578.1,0.3126]
[1756279556869,3.716,4578.2,4578.1,2.49689203]
[1756279557780,4.031,4578.2,4578.1,2.18429203]
[1756279557976,4.4785,4578.2,4577.8,2.20541247]
[1756279558272,0.4485,4578.1,4577.9,2.18439495]
[1756279558509,0.7635,4578.0,4577.9,2.18439495]
[1756279558640,0.7635,4578.0,4577.8,0.021]
[1756279558843,4.1645,4577.9,4577.8,0.021]
[1756279559245,4.4795,4577.9,4577.8,0.021]
[1756279561182,13.58163196,4577.9,4577.8,0.021]
[1756279561355,16.58363196,4577.9,4577.8,0.021]
[1756279561537,16.58363196,4577.9,4577.3,0.001]
[1756279561538,2.8446463,4577.4,4577.3,0.001]
[1756279561738,11.59772427,4577.4,4577.3,0.001]
[1756279561975,9.1615,4577.4,4577.3,0.001]
[1756279562180,12.0061463,4577.4,4577.3,0.001]
[1756279562386,2.84479945,4577.1,4576.8,0.021]
[1756279562574,12.10260923,4576.9,4576.8,0.021]
[1756279562880,16.24820923,4576.9,4576.8,0.021]
[1756279563182,5.190129,4576.9,4576.8,0.021]
[1756279563383,4.530129,4576.9,4576.8,0.021]
[1756279563547,8.250129,4576.9,4576.8,0.021]
[1756279564349,8.249129,4576.9,4576.8,0.021]
[1756279565680,0.766629,4576.9,4576.8,0.021]
[1756279565848,4.5921,4576.9,4576.8,0.021]
[1756279566052,10.84982427,4576.9,4576.8,0.021]
[1756279567393,7.13082427,4576.9,4576.8,0.021]
[1756279567969,4.5931,4576.9,4576.8,0.021]
[1756279568795,0.8731,4576.9,4576.8,0.021]
[1756279568976,0.4246,4576.9,4576.8,2.2059327]
[1756279569178,3.8286,4576.9,4576.8,2.2059327]
[1756279569364,0.1096,4576.9,4576.8,2.5062327]
[1756279569567,3.8286,4576.9,4576.8,2.5062327]
[1756279569955,3.719,4576.9,4576.8,2.5062327]
[1756279570284,10.84982427,4576.9,4576.8,0.021]
[1756279571094,16.69470923,4576.9,4576.8,0.021]
[1756279571589,15.16685327,4576.9,4576.8,0.021]
[1756279571794,5.190129,4576.9,4576.8,0.021]
[1756279572005,8.253129,4576.9,4576.8,0.021]
[1756279572182,8.913129,4576.9,4576.8,0.021]
[1756279572372,11.09801396,4576.9,4576.8,0.021]
[1756279575273,6.25772427,4575.9,4575.8,2.02]
[1756279575463,12.53282427,4575.9,4575.8,2.02]
[1756279575856,13.19282427,4575.9,4575.8,2.02]
[1756279576062,15.37818671,4575.9,4575.8,2.02]
[1756279576256,18.37818671,4575.9,4575.8,2.02]
[1756279576893,18.37818671,4575.9,4575.8,2.021]
[1756279577471,14.65618671,4575.9,4575.8,2.021]
[1756279577676,18.37918671,4575.9,4575.8,2.021]
[1756279578911,3.66,4575.8,4574.8,0.02]
[1756279579212,0.1096,4574.9,4574.8,0.02]
[1756279579381,5.5136,4574.9,4574.8,0.02]
[1756279579581,5.5136,4574.9,4574.8,0.3203]
[1756279580191,5.5136,4574.9,4574.8,2.2058879]
[1756279580511,5.5136,4574.9,4574.8,0.3203]
[1756279580882,5.8286,4574.9,4574.8,0.02]
[1756279581489,5.8266,4574.9,4574.8,0.02]
[1756279582806,5.5116,4574.9,4574.8,2.5061879]
[1756279583184,1.7906,4574.9,4574.8,2.5061879]
[1756279583383,5.5116,4574.9,4574.8,2.5061879]
[1756279583585,1.7906,4574.9,4574.8,2.5061879]
[1756279584107,5.5116,4574.9,4574.8,2.5061879]
[1756279585222,5.402,4574.9,4574.8,2.9734879]
[1756279585613,5.402,4574.9,4574.8,2.5061879]
[1756279585791,5.402,4574.9,4574.8,2.9734879]
[1756279586285,5.401,4574.9,4574.8,2.9734879]
[1756279586824,1.681,4574.9,4574.8,2.9734879]
[1756279587023,1.681,4574.9,4574.8,3.48943312]
[1756279587318,5.4,4574.9,4574.8,3.48943312]
[1756279587733,5.4,4574.9,4574.8,2.72183312]
[1756279587889,5.4,4574.9,4574.8,3.01503312]
[1756279589094,5.4,4574.9,4574.8,2.72183312]
[1756279589300,5.4,4574.9,4574.8,2.2058879]
[1756279589301,5.7024,4574.9,4574.8,2.2058879]
[1756279589533,5.812,4574.9,4574.8,0.02]
[1756279589923,5.812,4574.9,4574.8,2.2058879]
[1756279590121,5.812,4574.9,4574.8,0.02]
[1756279590317,5.812,4574.9,4574.8,2.2058879]
[1756279590897,5.812,4574.9,4574.8,0.02]
[1756279591297,6.2526,4574.9,4574.8,0.02]
[1756279592404,5.5086,4574.9,4574.8,2.4990879]
[1756279592936,5.5086,4574.9,4574.8,3.39869342]
[1756279593101,5.399,4574.9,4574.8,2.96759342]
[1756279593703,5.399,4574.9,4574.8,3.39969342]
[1756279595437,1.681,4574.9,4574.8,3.39969342]
[1756279595640,5.399,4574.9,4574.8,3.39969342]
[1756279596140,1.681,4574.9,4574.8,2.96859342]
[1756279596313,5.399,4574.9,4574.8,3.39969342]
[1756279596708,1.681,4574.9,4574.8,3.39969342]
[1756279596907,5.399,4574.9,4574.8,3.39969342]
[1756279597135,1.681,4574.9,4574.8,3.39969342]
[1756279597345,5.399,4574.9,4574.8,3.39969342]
[1756279597541,0.1096,4575.6,4575.5,2.18555349]
[1756279597842,3.8276,4575.6,4575.5,2.18555349]
[1756279598039,4.13,4575.6,4575.5,2.18555349]
[1756279598245,4.5706,4575.6,4575.5,2.18555349]
[1756279599107,3.8276,4575.6,4575.5,2.47875349]
[1756279599640,0.1096,4575.6,4575.5,2.47875349]
[1756279599865,1.681,4575.7,4575.6,2.18550572]
[1756279600157,5.399,4575.7,4575.6,2.47623127]
[1756279600647,1.681,4575.7,4575.6,2.47623127]
[1756279601062,5.399,4575.7,4575.6,2.98551975]
[1756279601350,5.399,4575.7,4575.6,3.41661975]
[1756279602531,5.399,4575.7,4575.6,3.52621975]
[1756279602922,1.681,4575.7,4575.6,3.52621975]
[1756279603125,3.718,4575.7,4575.6,3.52621975]
[1756279603845,3.718,4575.7,4575.6,3.09511975]
[1756279604048,0.1096,4576.3,4576.2,2.18521917]
[1756279604241,3.8266,4576.3,4576.2,2.18521917]
[1756279604447,4.129,4576.3,4576.2,2.18521917]
[1756279604757,4.5696,4576.3,4576.2,2.18521917]
[1756279605433,4.5696,4576.3,4575.8,2.18536245]
[1756279605634,0.4406,4576.2,4576.0,2.18530683]
[1756279605842,0.743,4576.1,4576.0,2.18530683]
[1756279606149,0.8526,4576.1,4575.9,2.18535407]
[1756279606343,4.1576,4576.0,4575.9,2.18535407]
[1756279606548,4.46,4576.0,4575.8,2.18540086]
[1756279606860,0.4406,4575.9,4575.8,2.18540086]
[1756279607259,0.743,4575.9,4575.8,2.18540086]
[1756279607557,0.3024,4575.9,4575.2,0.1096]
[1756279607761,3.717,4575.8,4575.2,0.1096]
[1756279607959,3.717,4575.8,4575.4,2.18559163]
[1756279608257,0.3024,4575.5,4575.4,2.18559163]
[1756279608463,3.717,4575.5,4575.4,2.18559163]
[1756279610248,4.0194,4575.5,4575.4,2.18559163]
[1756279610747,4.46,4575.5,4575.4,2.18559163]
[1756279611074,4.0194,4575.5,4575.4,2.18559163]
[1756279611366,3.717,4575.5,4575.4,2.18559163]
[1756279611668,4.0194,4575.5,4575.4,2.18559163]
[1756279611963,0.1096,4575.7,4575.6,2.18550572]
[1756279612130,3.717,4575.7,4575.6,2.18550572]
[1756279612462,3.717,4575.7,4575.6,2.47870572]
[1756279612863,0.1096,4576.3,4576.2,2.18521917]
[1756279613229,1.681,4576.4,4576.3,2.18517142]
[1756279613456,0.656998,4576.5,4576.4,2.18512367]
[1756279613655,0.656998,4576.5,4576.4,2.6380749]
[1756279613858,0.002,4576.8,4576.7,2.18498044]
[1756279614166,0.002,4576.8,4576.7,2.20683024]
[1756279614365,0.002,4576.8,4576.7,2.90928044]
[1756279614537,0.002,4576.8,4576.7,3.09721388]
[1756279616269,3.719,4576.8,4576.7,3.09721388]